Cogmind - Beta 11.1 @@@ ROGUE MODE // 2022.09.09 @ 17:02:04 Player: Enzo Result: Destroyed by H-61 Shepherd with Heavy Assault Cannon Performance ------------- Evolutions (4) 2000 Regions Visited (15) 3000 Robots Destroyed (136) 680 Value Destroyed (5217) 5217 Prototype IDs (45) 900 Alien Tech Used (0) 0 Bonus (708) 708 TOTAL SCORE: 12505 Bonus ------- High Alert Combat Kills 402 Follower Combat Kills 628 Entered Garrisons 200 Used RIF Installer 500 Aligned with FarCom 300 Met R17 at Cetus 500 Friendly Fire -1822 Cogmind --------- Core Integrity 0/850 Matter 297/300 Energy 89/100 System Corruption 36% Temperature Cool (0) Movement Core (100) Ox1 Location -6/Hub_04(d) Parts ------- > --- POWER (1) -------- (None) > --- PROPULSION (4) --- (None) > --- UTILITY (8) ------ Advanced Signal Interpreter Relay Coupler [Hunter] (10) > --- WEAPON (2) ------- Advanced KE Penetrator > --- INVENTORY (5) ---- Advanced Variable Charge Gun Advanced KE Penetrator Remote Datajack Peak State ------------ > --- POWER ------------ Enhanced Nuclear Core > --- PROPULSION ------- Centrium Heavy Treads Centrium Heavy Treads > --- UTILITY ---------- Medium Storage Unit Advanced Signal Interpreter Improved Terrain Scan Processor Centrium Medium Armor Plating Centrium Medium Armor Plating Relay Coupler [Hunter] Improved System Restoration Module > --- WEAPON ----------- Phase Cannon Longsword +1 > --- INVENTORY -------- Neutrino Core Quantum Reactor Combat Airjet Advanced Variable Charge Gun Advanced Variable Charge Gun Advanced KE Penetrator Advanced KE Penetrator Advanced KE Penetrator Advanced EMP Blaster Remote Datajack [Rating: 97] Favorites ----------- Power Enhanced Nuclear Core Engine Light Ion Engine Power Core Enhanced Nuclear Core Propulsion Compact Wheel Treads Improved Treads Leg Improved VSS Leg Wheel Compact Wheel Hover Unit Aerolev Unit Utility Structural Scanner Device Structural Scanner Storage Large Storage Unit Processor Signal Interpreter Hackware Relay Coupler [NC] Protection Improved Propulsion Shielding Weapon Longsword +1 Energy Gun EM Pulse Gun Energy Cannon Advanced Beam Cannon Ballistic Gun KE Penetrator Ballistic Cannon Light Cannon Launcher Advanced EMP Blaster Special Weapon Remote Datajack Slashing Weapon Longsword +1 Build | -11 -10 -10 -9 -9 -9 -8 -8 -8 -8 -8 -6 -6 -6 -6 -6 ------- Run | Scr Mat Min Mat Min Exi Min Mat Sto Gar Rec Fac Ext Cet Arc Hub Slots Evolved 8 | . . . 2 . . . 2 . . . 4 . . . . Power . | . . . . . . . . . . . . . . . . Propulsion 2 | . . . 1 . . . 1 . . . . . . . . Utility 6 | . . . 1 . . . 1 . . . 4 . . . . Weapon . | . . . . . . . . . . . . . . . . Parts Attached 151 | 6 10 . 5 1 . 1 6 34 10 1 9 29 22 13 4 Power 13 | 1 1 . . . . 1 . 6 . . 2 . 1 1 . Engine 9 | 1 1 . . . . . . 6 . . 1 . . . . Core 4 | . . . . . . 1 . . . . 1 . 1 1 . Reactor . | . . . . . . . . . . . . . . . . Propulsion 34 | 2 2 . 4 . . . 1 8 4 . . 1 7 4 1 Treads 9 | . . . 1 . . . . 2 . . . . 2 4 . Leg 4 | . . . . . . . 1 . . . . . 3 . . Wheel 12 | 2 2 . 3 . . . . 5 . . . . . . . Hover 9 | . . . . . . . . 1 4 . . 1 2 . 1 Flight . | . . . . . . . . . . . . . . . . Utility 31 | 1 3 . 1 . . . 2 4 2 1 7 4 2 4 . Device 7 | . 2 . . . . . 1 1 . . 1 . . 2 . Storage 3 | 1 1 . . . . . . . 1 . . . . . . Processor 5 | . . . 1 . . . . . . . 2 2 . . . Hackware 3 | . . . . . . . . . . . 2 1 . . . Protection 13 | . . . . . . . 1 3 1 1 2 1 2 2 . Artifact . | . . . . . . . . . . . . . . . . Weapon 73 | 2 4 . . 1 . . 3 16 4 . . 24 12 4 3 Energy Gun 2 | 1 . . . . . . . 1 . . . . . . . Energy Cannon 11 | . . . . . . . . 2 1 . . 6 1 1 . Ballistic Gun 4 | 1 . . . . . . . . . . . . . 1 2 Ballistic Cannon 13 | . 4 . . . . . 2 5 . . . 2 . . . Launcher 18 | . . . . . . . . 4 1 . . 6 6 . 1 Special Weapon 7 | . . . . 1 . . . . 1 . . 3 1 1 . Impact Weapon . | . . . . . . . . . . . . . . . . Slashing Weapon 18 | . . . . . . . 1 4 1 . . 7 4 1 . Piercing Weapon . | . . . . . . . . . . . . . . . . Special Melee Weapon . | . . . . . . . . . . . . . . . . Unidentified Prototypes 10 | . . . . . . . . 6 . . 1 . 2 . 1 Corrupted Parts 4 | . . . . . . . . . . . . . 2 . 2 System Corruption 41 | . . . . . . . . . . . . . 20 . 21 Parts Lost 37 | . 2 . . . . . . 6 . . . 6 7 3 13 Power 4 | . 1 . . . . . . 2 . . . . . . 1 Propulsion 11 | . . . . . . . . 3 . . . 1 3 . 4 Utility 13 | . . . . . . . . 1 . . . 3 3 2 4 Weapon 9 | . 1 . . . . . . . . . . 2 1 1 4 Highest Loss Streak 13 | . 1 . . . . . . 4 . . . 3 4 3 13 To Critical Strikes 1 | . . . . . . . . . . . . . 1 . . Average Slot Usage (%) 92 | . 95 100 91 100 100 100 92 90 100 100 94 94 83 86 78 Engine 6 | . 13 14 11 11 11 3 . 8 9 9 4 . . . . Core 2 | . . . . . . 7 9 . . . 1 6 6 6 4 Treads 4 | . . . 3 . . . . 1 6 . . . 10 21 19 Wheel 15 | . 27 28 27 33 33 33 27 26 20 . . . . . . Hover 7 | . . . . . . . . . 8 36 26 25 2 . . Device 9 | . 11 14 11 11 11 11 10 8 9 9 8 12 4 6 4 Storage 8 | . 14 14 11 11 11 11 9 9 9 9 6 6 6 6 4 Processor 8 | . . . 4 11 11 11 9 9 9 9 8 7 13 13 12 Hackware 4 | . . . . . . . . . . . 13 13 11 6 6 Protection 6 | . . . . . . . 7 8 9 9 9 5 11 10 9 Energy Cannon 2 | . . . . . . . . 5 8 . . 1 2 . . Ballistic Cannon 7 | . 21 28 22 18 11 11 9 7 8 . . . . . . Special Weapon 2 | . . . . 3 11 11 . . . 9 6 4 3 . . Slashing Weapon 3 | . . . . . . . 9 3 . 9 6 4 2 5 6 Naked Turns . | . . . . . . . . . . . . . . . . Heaviest Build 47 | 12 30 30 30 30 28 32 40 47 47 29 33 38 47 47 47 Greatest Support 160 | 26 26 26 48 48 48 48 48 64 48 32 32 32 160 160 92 Greatest Overweight (x) 2 | . 1 1 1 . . . . 2 1 . 1 1 1 . . Average Overweight (x) . | . . 1 . . . . . . . . . . . . . Largest Inventory Capacity 15 | 8 15 15 15 15 15 15 15 15 15 10 10 10 10 10 10 Average Capacity 12 | 7 9 15 15 15 15 15 15 15 14 10 10 10 10 10 9 Most Carried 15 | 2 10 9 15 15 15 15 15 15 14 10 10 10 10 10 10 Average Carried 11 | 1 6 8 11 15 14 15 14 14 12 9 9 9 9 9 8 Final Capacity 15 | 8 15 15 15 15 15 15 15 15 10 10 10 10 10 10 5 Final Carried 15 | 2 8 9 15 15 15 15 15 14 10 10 10 9 10 10 3 Class Distribution -------------------- 51% | Mutant 26% | Scavenger-Mutant 15% | Scout Dominant Class ---------------- Mutant | -10/Materials Mutant | -10/Mines Mutant | -9/Materials Mutant | -9/Mines Mutant | -9/Exiles Mutant | -8/Mines Mutant | -8/Materials Mutant | -8/Storage Scavenger-Mutant | -8/Garrison Mutant | -8/Recycling Scout | -6/Factory Scout | -6/Extension Scavenger-Mutant | -6/Cetus Scavenger-Mutant | -6/Archives Scavenger-Mutant | -6/Hub_04(d) Resources | -11 -10 -10 -9 -9 -9 -8 -8 -8 -8 -8 -6 -6 -6 -6 -6 ----------- Run | Scr Mat Min Mat Min Exi Min Mat Sto Gar Rec Fac Ext Cet Arc Hub Matter Collected 3095 | 269 241 10 290 . 18 . 45 570 136 64 75 610 362 344 61 Remotely . | . . . . . . . . . . . . . . . . Salvage Created 4995 | 123 550 . 274 . . . 45 1156 166 172 97 1112 674 449 177 Parts 273 | 6 36 . 25 . . . 4 57 16 4 8 52 33 22 10 Haulers Intercepted 9 | . 2 . 2 . . . . 2 . . . 3 . . . Recyclers Shooed 2 | . . . . . . . . . . . . 2 . . . Parts Field Recycled . | . . . . . . . . . . . . . . . . Retrieved Matter . | . . . . . . . . . . . . . . . . Parts Self-Destructed . | . . . . . . . . . . . . . . . . Prevented . | . . . . . . . . . . . . . . . . Kills | -11 -10 -10 -9 -9 -9 -8 -8 -8 -8 -8 -6 -6 -6 -6 -6 ------- Run | Scr Mat Min Mat Min Exi Min Mat Sto Gar Rec Fac Ext Cet Arc Hub Combat Hostiles Destroyed 93 | . 11 . 4 . . . 1 19 8 3 . 21 19 4 3 Melee 22 | . . . . . . . 1 9 . 3 . 5 2 1 1 Guns 12 | . 8 . . . . . . . . . . . . 3 1 Cannons 18 | . 3 . 4 . . . . 7 3 . . 1 . . . AOE 34 | . . . . . . . . 3 5 . . 15 10 . 1 Classes Destroyed 17 | 2 5 . 2 . . . 1 1 1 2 . 1 . 1 1 Worker 7 | . 1 . 2 . . . . . . . . 4 . . . Builder 3 | . . . . . . . . 1 . . 1 1 . . . Tunneler 3 | 1 . . . . . . . . . . 1 1 . . . Hauler 9 | . 2 . 2 . . . . 2 . . . 3 . . . Recycler 3 | 1 1 . . . . . . 1 . . . . . . . Operator 4 | . . . . . . . . . . . . . . 4 . Drone 1 | . . . . . . . . . . 1 . . . . . Watcher 10 | . 2 . 2 . . . . 2 . . 1 1 2 . . Swarmer 23 | . 3 . . . . . . . 3 . . 11 6 . . Grunt 34 | . 8 . 2 . . . . 11 . 1 . 7 4 . 1 Brawler 1 | . . . 1 . . . . . . . . . . . . Duelist 2 | . . . . . . . . . 2 . . . . . . Sentry 16 | . . . 1 . . . . 7 3 . . 1 . 4 . Demolisher 1 | . . . . . . . . . . 1 . . . . . Specialist 2 | . . . . . . . . . . . . . . . 2 Hunter 4 | . . . . . . . 1 1 . . . 1 1 . . Behemoth 1 | . . . . . . . . . . . . 1 . . . Cetus Guard 8 | . . . . . . . . . . . . . 8 . . Thug 2 | . . . . . . . . . . . . 2 . . . Best Kill Streak 12 | 1 6 . 2 . . . 1 4 6 1 2 12 4 2 2 Combat Bots Only 8 | . 4 . 1 . . . 1 4 6 1 . 8 4 2 2 Max Kills in Single Turn 4 | 1 1 . 1 . . . 1 2 3 1 1 4 2 1 1 Gunslinging . | . . . . . . . . . . . . . . . . Exploded 3 | . . . . . . . . 2 3 . . 3 2 . 1 Melee 1 | . . . . . . . 1 1 . 1 . 1 1 1 1 Uniques/NPCs Destroyed 2 | . . . . . . . . . . . . 1 1 . . A7 (-6/Extension) Revision 17 (-6/Cetus) Combat | -11 -10 -10 -9 -9 -9 -8 -8 -8 -8 -8 -6 -6 -6 -6 -6 -------- Run | Scr Mat Min Mat Min Exi Min Mat Sto Gar Rec Fac Ext Cet Arc Hub Damage Taken 7859 | . 370 . 196 . . . 31 983 156 . . 1106 1963 1299 1755 Core 1212 | . 70 . 45 . . . 12 187 . . . 159 198 75 466 Absorbed by Shields 176 | . . . . . . . . . 17 . . 159 . . . Reduced by Siege Mode 116 | . . . . . . . . . . . . . 41 75 . Redirected to Shielding 118 | . . . . . . . . . 7 . . 111 . . . Regen/Repaired (Parts) 263 | . 54 . . . . . . 95 . . 114 . . . . Core Remaining (%) 80 | 100 . 72 . . . 88 . . . 63 . . . . . Volleys Fired 258 | 3 36 . 30 2 . . . 50 13 . 2 44 28 32 18 Largest 2 | 2 2 . 2 2 . . . 2 2 . 1 2 1 1 1 Hottest 138 | 60 75 . 70 100 . . . 112 100 . 5 138 43 85 36 Shots Fired 352 | 6 71 . 60 3 . . . 72 19 . 2 48 28 30 13 Gun 83 | 6 48 . . . . . . . . . . . . 18 11 Cannon 204 | . 23 . 60 2 . . . 63 15 . . 29 1 11 . Launcher 54 | . . . . . . . . 9 4 . . 12 27 . 2 Special 11 | . . . . 1 . . . . . . 2 7 . 1 . Kinetic 193 | 3 46 . 60 2 . . . 36 6 . . 11 . 18 11 Thermal 58 | . . . . 1 . . . 27 . . . 18 1 11 . Explosive 28 | . . . . . . . . . 4 . . 12 12 . . Electromagnetic 63 | 3 25 . . . . . . 9 9 . . . 15 . 2 Robot Hit Streak 29 | 5 12 . 9 . . . . 6 12 . 14 15 8 27 29 Robot Miss Streak 4 | . 2 . 4 . . . . 4 . . . 2 2 1 2 Penetration Max 1 | . . . . . . . . . . . . . . 1 1 Secondary Targets 2 | . 2 . . . . . . . . . . . . . . Max Gunslinging Chain 1 | . 1 . . . . . . . . . . . . . . Shots Hit Robots 305 | 5 46 . 33 . . . 2 66 12 7 6 55 20 41 12 Core Hits 213 | 3 23 . 12 . . . 1 32 13 4 1 55 45 14 10 Critical Kills . | . . . . . . . . . . . . . . . . Critical Parts Destroyed . | . . . . . . . . . . . . . . . . Critical Strikes 12 | . 1 . 1 . . . . 4 1 . . 2 1 1 1 Blast 1 | . . . 1 . . . . . . . . . . . . Corrupt 2 | . 1 . . . . . . . 1 . . . . . . Sever 9 | . . . . . . . . 4 . . . 2 1 1 1 Melee Attacks 96 | . . . . . . . 2 35 . 7 4 25 6 12 5 Impact . | . . . . . . . . . . . . . . . . Slashing 96 | . . . . . . . 2 35 . 7 4 25 6 12 5 Piercing . | . . . . . . . . . . . . . . . . Sneak Attacks 22 | . . . . . . . 1 2 . 5 3 6 . 5 . Combat Hostiles 1 | . . . . . . . 1 . . . . . . . . Follow-up Attacks . | . . . . . . . . . . . . . . . . Damage Inflicted 15964 | 72 728 . 592 . . . 148 3043 643 542 340 4434 3119 1689 614 Guns 1290 | 72 472 . . . . . . . . . . . . 442 304 Cannons 2795 | . 256 . 592 . . . . 730 193 . . 690 29 305 . Explosions 6412 | . . . . . . . . 709 450 . . 2222 2907 . 124 Melee 5451 | . . . . . . . 148 1588 . 542 340 1522 183 942 186 Ramming 16 | . . . . . . . . 16 . . . . . . . Kinetic 2639 | 29 447 . 592 . . . . 419 98 . . 308 . 442 304 Thermal 1172 | . . . . . . . . 335 . . . 382 150 305 . Explosive 4539 | . . . . . . . . . 450 . . 2222 1867 . . Electromagnetic 2147 | 43 281 . . . . . . 685 95 . . . 919 . 124 Impact . | . . . . . . . . . . . . . . . . Slashing 5451 | . . . . . . . 148 1588 . 542 340 1522 183 942 186 Piercing . | . . . . . . . . . . . . . . . . Highest Corruption 36 | . . . . . . . . . . . 2 2 22 22 36 Average Corruption 10 | . . . . . . . . . . . 2 2 18 16 18 Corruption Purged 7 | . . . . . . . . . . . . . . 7 . Corruption Blocked . | . . . . . . . . . . . . . . . . Effects 78 | . . . . . . . . . . . 5 8 23 29 13 Message Errors 19 | . . . . . . . . . . . 1 3 7 7 1 Matter Fused 13 | . . . . . . . . . . . . 2 4 6 1 Heat Flow Errors 13 | . . . . . . . . . . . 1 . 3 6 3 Energy Discharges 8 | . . . . . . . . . . . . . 4 3 1 Data Loss (minor) 7 | . . . . . . . . . . . 2 2 3 . . Data Loss (major) 1 | . . . . . . . . . . . . . . 1 . Misfires 2 | . . . . . . . . . . . . . 1 1 . Alerts 2 | . . . . . . . . . . . 1 . . 1 . Misdirections 3 | . . . . . . . . . . . . . . 1 2 Weapon Failures 10 | . . . . . . . . . . . . 1 1 3 5 Overload Shots . | . . . . . . . . . . . . . . . . Overflow Damage 1111 | . . . 2 . . . . 89 45 124 162 284 212 184 9 Projectiles 30 | . . . 2 . . . . 28 . . . . . . . Explosions 352 | . . . . . . . . 7 45 . . 92 199 . 9 Melee 729 | . . . . . . . . 54 . 124 162 192 13 184 . Knockbacks 7 | . 3 . . . . . . 2 1 . . 1 . . . Impact . | . . . . . . . . . . . . . . . . Kinetic 6 | . 2 . . . . . . 2 1 . . 1 . . . Secondary 1 | . 1 . . . . . . . . . . . . . . Self-Inflicted Damage 201 | . . . . . . . . 55 . . . 125 . . 21 Shots 7 | . . . . . . . . 2 . . . 3 . . 2 Rammed 2 | . . . . . . . . 2 . . . . . . . Targets Rammed 2 | . . . . . . . . 2 . . . . . . . Kicked . | . . . . . . . . . . . . . . . . Crushed . | . . . . . . . . . . . . . . . . Highest Temperature 397 | . 81 . 45 8 . . . 164 215 . 140 397 276 332 181 Average Temperature 88 | . 33 . 21 5 . . . 50 73 . 76 168 67 152 80 Received Heat Transfer 1552 | . 177 . 84 . . . . 306 27 . . 286 126 180 366 Effects 7 | . . . . . . . . . . . . 4 . 3 . Shutdowns 1 | . . . . . . . . . . . . 1 . . . Interference 5 | . . . . . . . . . . . . 2 . 3 . Matter Decay 1 | . . . . . . . . . . . . 1 . . . Siege Activations 8 | . . . . . . . . . . . . . 5 3 . Total Turns 82 | . . . . . . . . . . . . . 32 50 . Longest Duration 26 | . . . . . . . . . . . . . 10 26 . Robots Corrupted 7 | . . . . . . . . . . . . . 7 . . Combat Hostiles 7 | . . . . . . . . . . . . . 7 . . Parts Fried 4 | . . . . . . . . 1 . . . 1 2 . . Impact Corruptions . | . . . . . . . . . . . . . . . . Robots Melted . | . . . . . . . . . . . . . . . . Combat Hostiles . | . . . . . . . . . . . . . . . . Parts Melted 1 | . . . . . . . . . . . . . 1 . . Heat Transferred 1556 | . . . . . . . . 605 . . . 444 137 370 . Parts Sabotaged . | . . . . . . . . . . . . . . . . Parts Stolen . | . . . . . . . . . . . . . . . . Parts Stripped . | . . . . . . . . . . . . . . . . Power Chain Reactions 3 | . . . . . . . . 2 . . . . 1 . . Missiles Intercepted . | . . . . . . . . . . . . . . . . Alert | -11 -10 -10 -9 -9 -9 -8 -8 -8 -8 -8 -6 -6 -6 -6 -6 ------- Run | Scr Mat Min Mat Min Exi Min Mat Sto Gar Rec Fac Ext Cet Arc Hub Peak Influence 1077 | 10 269 55 288 104 . . 60 474 424 383 1077 673 706 353 79 Initial 1045 | . 6 55 21 101 . . . 25 161 190 1045 187 299 232 58 Average 276 | 4 170 55 149 101 . . 14 265 308 283 620 306 458 265 58 Maximum Alert Level 3 | . 1 . 1 . . . . 2 2 1 3 2 3 1 . Low Security (%) 38 | 100 60 100 61 100 . 100 100 34 18 12 . 37 . 34 100 Level 1 41 | . 39 . 38 . . . . 40 75 87 33 38 32 65 . Level 2 15 | . . . . . . . . 24 5 . 20 23 65 . . Level 3 4 | . . . . . . . . . . . 46 . 2 . . Level 4 . | . . . . . . . . . . . . . . . . Level 5 . | . . . . . . . . . . . . . . . . High Security . | . . . . . . . . . . . . . . . . Max Security . | . . . . . . . . . . . . . . . . Squads Dispatched 13 | . . . 1 . . . . 4 . . 1 3 . . 4 Investigation 2 | . . . 1 . . . . . . . . 1 . . . Extermination 1 | . . . . . . . . . . . 1 . . . . Reinforcement 7 | . . . . . . . . 1 . . . 2 . . 4 Assault . | . . . . . . . . . . . . . . . . Garrison 3 | . . . . . . . . 3 . . . . . . . Intercept . | . . . . . . . . . . . . . . . . Searches Triggered 1 | . . . . . . . . . . . 1 . . . . Construction Impeded 2 | . . . . . . . . . . . . 1 . . 1 Haulers Reinforced . | . . . . . . . . . . . . . . . . Active Scanning Responses . | . . . . . . . . . . . . . . . . Cargo Convoy Interrupts . | . . . . . . . . . . . . . . . . Stealth | -11 -10 -10 -9 -9 -9 -8 -8 -8 -8 -8 -6 -6 -6 -6 -6 --------- Run | Scr Mat Min Mat Min Exi Min Mat Sto Gar Rec Fac Ext Cet Arc Hub Distress Signals 6 | . . . 1 . . . . 1 . . . 1 2 . 1 Communications Jammed . | . . . . . . . . . . . . . . . . Distress Signals . | . . . . . . . . . . . . . . . . Times Spotted 180 | . 15 . 16 . . 2 2 34 7 19 2 36 24 14 9 Peak Tracking Total 6 | . 4 . 3 . . 3 2 6 5 5 1 5 5 3 6 Tactical Retreats 13 | . . . 2 . . . . 6 . . . 2 2 . 1 Traps | -11 -10 -10 -9 -9 -9 -8 -8 -8 -8 -8 -6 -6 -6 -6 -6 ------- Run | Scr Mat Min Mat Min Exi Min Mat Sto Gar Rec Fac Ext Cet Arc Hub Traps Triggered 10 | . . . 1 . . . . 2 5 . 1 1 . . . Indirectly . | . . . . . . . . . . . . . . . . Trap Hack Attempts . | . . . . . . . . . . . . . . . . Triggered . | . . . . . . . . . . . . . . . . Disarmed . | . . . . . . . . . . . . . . . . Reprogrammed . | . . . . . . . . . . . . . . . . Reused . | . . . . . . . . . . . . . . . . Traps Extracted . | . . . . . . . . . . . . . . . . Installed . | . . . . . . . . . . . . . . . . Triggered . | . . . . . . . . . . . . . . . . Machines | -11 -10 -10 -9 -9 -9 -8 -8 -8 -8 -8 -6 -6 -6 -6 -6 ---------- Run | Scr Mat Min Mat Min Exi Min Mat Sto Gar Rec Fac Ext Cet Arc Hub Machines Disabled 10 | . . . . . . . . 3 2 . . 1 3 1 . Max in Single Turn 2 | . . . . . . . . 1 1 . . . 2 1 . Garrison Relay 1 | . . . . . . . . . 1 . . . . . . Machines Sabotaged . | . . . . . . . . . . . . . . . . Garrisons Compromised . | . . . . . . . . . . . . . . . . Overloaded Fab Kills . | . . . . . . . . . . . . . . . . Hacking | -11 -10 -10 -9 -9 -9 -8 -8 -8 -8 -8 -6 -6 -6 -6 -6 --------- Run | Scr Mat Min Mat Min Exi Min Mat Sto Gar Rec Fac Ext Cet Arc Hub Machines Accessed 57 | . 6 . 6 . 1 . . 8 . 12 7 10 3 1 3 Terminals 42 | . 4 . 5 . . . . 6 . 6 5 10 3 . 3 Fabricators . | . . . . . . . . . . . . . . . . Repair Stations 3 | . 1 . . . . . . 1 . . 1 . . . . Recycling Units 7 | . 1 . . . . . . . . 6 . . . . . Scanalyzers 1 | . . . 1 . . . . . . . . . . . . Garrison Access 2 | . . . . . . . . 1 . . 1 . . . . Total Hacks 175 | . 20 . 22 . 1 . . 27 . 30 14 17 10 25 9 Successful 106 | . 16 . 12 . 1 . . 14 . 17 9 7 2 25 3 Failed 68 | . 4 . 10 . . . . 13 . 12 5 10 8 . 6 Catastrophic 15 | . . . . . . . . 3 . 4 . 2 5 . 1 Database Lockouts 1 | . . . . . . . . . . 1 . . . . . Manual 49 | . 7 . 13 . 1 . . 6 . 15 1 3 . 2 1 Terminals 104 | . 12 . 17 . . . . 18 . 13 8 17 10 . 9 Fabricators . | . . . . . . . . . . . . . . . . Repair Stations 14 | . 4 . . . . . . 5 . . 5 . . . . Recycling Units 21 | . 4 . . . . . . . . 17 . . . . . Scanalyzers 5 | . . . 5 . . . . . . . . . . . . Garrison Access 5 | . . . . . . . . 4 . . 1 . . . . Terminal Hacks 65 | . 5 . 6 . 1 . . 8 . 4 4 7 2 25 3 Record 28 | . . . . . . . . . . 1 . . 2 25 . Part Schematic 1 | . . . . . . . . . . 1 . . . . . Robot Schematic 1 | . . . . . . . . 1 . . . . . . . Robot Analysis 2 | . 1 . 1 . . . . . . . . . . . . Prototype ID Bank 8 | . 3 . 2 . . . . 1 . . . . . . 2 Open Door 9 | . . . . . . . . 2 . . 2 5 . . . Branch Access Points 1 | . . . . . . . . . . . . 1 . . . Emergency Access Points 1 | . . . . . . . . . . . . . . . 1 Alert Level 3 | . . . 2 . . . . 1 . . . . . . . Unreport Threat 6 | . . . . . . . . 1 . 2 2 1 . . . Locate Traps 3 | . 1 . . . . . . 2 . . . . . . . Registered Prototypes 1 | . . . 1 . . . . . . . . . . . . EX-Prototype ID Bank 1 | . . . . . 1 . . . . . . . . . . Fabricator Hacks . | . . . . . . . . . . . . . . . . Repair Station Hacks 12 | . 4 . . . . . . 4 . . 4 . . . . Scan Component 6 | . 2 . . . . . . 2 . . 2 . . . . Repair 6 | . 2 . . . . . . 2 . . 2 . . . . Recycling Unit Hacks 9 | . 2 . . . . . . . . 7 . . . . . Report Inventory 6 | . 1 . . . . . . . . 5 . . . . . Retrieve Matter 1 | . . . . . . . . . . 1 . . . . . Retrieve Components 2 | . 1 . . . . . . . . 1 . . . . . Scanalyzer 2 | . . . 2 . . . . . . . . . . . . Insert Component 1 | . . . 1 . . . . . . . . . . . . Analyze 1 | . . . 1 . . . . . . . . . . . . Garrison Access Hacks 2 | . . . . . . . . 1 . . 1 . . . . Unlock Access 2 | . . . . . . . . 1 . . 1 . . . . Unauthorized Hacks 16 | . 5 . 4 . . . . 1 . 6 . . . . . Terminals 9 | . 4 . 4 . . . . 1 . . . . . . . Botnet 9 | . 4 . 4 . . . . 1 . . . . . . . Fabricators . | . . . . . . . . . . . . . . . . Repair Stations . | . . . . . . . . . . . . . . . . Recycling Units 7 | . 1 . . . . . . . . 6 . . . . . Reject 1 | . 1 . . . . . . . . . . . . . . Tunnel 6 | . . . . . . . . . . 6 . . . . . Scanalyzers . | . . . . . . . . . . . . . . . . Garrison Access . | . . . . . . . . . . . . . . . . Data Cores Recovered . | . . . . . . . . . . . . . . . . Used . | . . . . . . . . . . . . . . . . Hacking Detections 48 | . 5 . 6 . . . . 7 . 10 7 7 3 . 3 Full Trace Events 1 | . . . . . . . . . . . . 1 . . . Feedback Events . | . . . . . . . . . . . . . . . . Feedback Blocked . | . . . . . . . . . . . . . . . . Robot Schematics Acquired 1 | . . . . . . . . 1 . . . . . . . Robots Built . | . . . . . . . . . . . . . . . . Authchips . | . . . . . . . . . . . . . . . . Time . | . . . . . . . . . . . . . . . . Total Robot Build Rating . | . . . . . . . . . . . . . . . . Part Schematics Acquired 2 | . . . 1 . . . . . . 1 . . . . . Parts Built . | . . . . . . . . . . . . . . . . Authchips . | . . . . . . . . . . . . . . . . Time . | . . . . . . . . . . . . . . . . Total Part Build Rating . | . . . . . . . . . . . . . . . . Parts Repaired 6 | . 2 . . . . . . 2 . . 2 . . . . Time 238 | . 52 . . . . . . 98 . . 88 . . . . Parts Recycled . | . . . . . . . . . . . . . . . . Recycled Matter . | . . . . . . . . . . . . . . . . Retrieved Matter . | . . . . . . . . . . . . . . . . Retrieved Components 13 | . 10 . . . . . . . . 3 . . . . . Parts Scanalyzed 1 | . . . 1 . . . . . . . . . . . . Part Schematics Acquired 1 | . . . 1 . . . . . . . . . . . . Parts Damaged . | . . . . . . . . . . . . . . . . Bothacking | -11 -10 -10 -9 -9 -9 -8 -8 -8 -8 -8 -6 -6 -6 -6 -6 ------------ Run | Scr Mat Min Mat Min Exi Min Mat Sto Gar Rec Fac Ext Cet Arc Hub Used RIF Installer 1 | . . . . . . . . . 1 . . . . . . Robots Hacked 8 | . . . . . . . . . . . 2 5 . 1 . Non-combat 5 | . . . . . . . . . . . 2 2 . 1 . Combat 3 | . . . . . . . . . . . . 3 . . . Robot Hacks Applied 8 | . . . . . . . . . . . 2 5 . 1 . parse_system 2 | . . . . . . . . . . . . 2 . . . no_distress 2 | . . . . . . . . . . . 1 . . 1 . block_reporting 1 | . . . . . . . . . . . 1 . . . . overwrite_iff 1 | . . . . . . . . . . . . 1 . . . formatsys_high 2 | . . . . . . . . . . . . 2 . . . Relay Couplers Released 3 | . . . . . . . . . 3 . . . . . . Machine Destruction 3 | . . . . . . . . . 3 . . . . . . Attached 3 | . . . . . . . . . . . 2 1 . . . Fabnet Peak Effective % . | . . . . . . . . . . . . . . . . Robots Rewired 11 | . . . . . . . . . . 5 . 6 . . . Allies Hacked . | . . . . . . . . . . . . . . . . Hacks Repelled . | . . . . . . . . . . . . . . . . Allies | -11 -10 -10 -9 -9 -9 -8 -8 -8 -8 -8 -6 -6 -6 -6 -6 -------- Run | Scr Mat Min Mat Min Exi Min Mat Sto Gar Rec Fac Ext Cet Arc Hub Total Allies 21 | . . 3 . . . . . . . 5 . 13 . . . Largest Group 6 | . . 3 3 . . . . . . 5 5 6 . . . Highest-Rated Group 316 | . . 40 40 . . . . . . 88 88 316 . . . Highest-Rated Ally 159 | . . 16 16 . . . . . . 21 21 159 . . . Total Orders . | . . . . . . . . . . . . . . . . Ally Attacks 140 | . . . 21 . . . . . . 1 19 99 . . . Total Damage 3117 | . . . 241 . . . . . . 33 344 2499 . . . Kills 19 | . . . 5 . . . . . . 1 1 12 . . . Allies Corrupted . | . . . . . . . . . . . . . . . . Allies Melted . | . . . . . . . . . . . . . . . . Intel | -11 -10 -10 -9 -9 -9 -8 -8 -8 -8 -8 -6 -6 -6 -6 -6 ------- Run | Scr Mat Min Mat Min Exi Min Mat Sto Gar Rec Fac Ext Cet Arc Hub Robot Analysis Total 2 | . 1 . 1 . . . . . . . . . . . . Derelict Logs Recovered 1 | . . 1 . . . . . . . . . . . . . Drone Launches . | . . . . . . . . . . . . . . . . Drone Recoveries . | . . . . . . . . . . . . . . . . Exploration | -11 -10 -10 -9 -9 -9 -8 -8 -8 -8 -8 -6 -6 -6 -6 -6 ------------- Run | Scr Mat Min Mat Min Exi Min Mat Sto Gar Rec Fac Ext Cet Arc Hub Turns Passed 7293 | 83 619 99 676 30 283 139 188 1664 344 384 601 820 581 609 173 Spaces Moved 6197 | 69 441 89 547 22 282 138 144 903 286 690 978 925 313 289 81 Core 8 | 7 . . . . . . . . . . . . . . 1 Treads 591 | . . . . . . . . 6 . . . . 222 289 74 Legs 27 | . . . . . . . . . . . . . 27 . . Wheels 2833 | 62 441 89 547 22 282 138 144 897 211 . . . . . . Hover 2738 | . . . . . . . . . 75 690 978 925 64 . 6 Flight . | . . . . . . . . . . . . . . . . Fastest Speed 38 | 50 90 105 86 100 100 100 100 100 38 38 38 38 38 160 50 Average Speed 78 | 86 93 105 97 100 100 100 100 101 86 38 40 40 131 160 151 Slowest Speed 240 | 100 105 105 105 100 100 100 100 240 100 38 98 98 160 160 160 Overloaded Moves . | . . . . . . . . . . . . . . . . Propulsion Burnouts . | . . . . . . . . . . . . . . . . Robots Hopped . | . . . . . . . . . . . . . . . . Cave-ins Triggered . | . . . . . . . . . . . . . . . . Exploration Rate (%) 48 | 4 64 31 38 5 63 30 14 77 56 99 25 78 76 98 12 Regions Visited 15 Branch Regions 10 Pre-discovered Areas 7 | . . 1 . . . . . . . 6 . . . . . Known Exits Taken 11 | . . . 1 1 1 1 1 1 . 1 1 1 1 1 . Unknown Exits Taken 3 | 1 1 1 . . . . . . . . . . . . . Scrap Searched 2 | . . 1 . . . 1 . . . . . . . . . Spaces Dug 3 | . . . . 1 . . . 2 . . . . . . . Terrain Destroyed 317 | . . . . 1 . . . 20 13 . . 116 156 9 2 Melee . | . . . . . . . . . . . . . . . . Projectile 25 | . . . . 1 . . . 8 . . . 5 . 9 2 AOE 292 | . . . . . . . . 12 13 . . 111 156 . . Terrain Rammed . | . . . . . . . . . . . . . . . . Walls Destroyed . | . . . . . . . . . . . . . . . . Machines Disabled . | . . . . . . . . . . . . . . . . Actions | -11 -10 -10 -9 -9 -9 -8 -8 -8 -8 -8 -6 -6 -6 -6 -6 --------- Run | Scr Mat Min Mat Min Exi Min Mat Sto Gar Rec Fac Ext Cet Arc Hub Total 8128 | 83 574 94 626 24 283 139 188 1544 364 805 1179 1285 445 387 108 Wait 1107 | 4 74 5 35 . . . 19 481 5 29 171 185 61 38 . Move 6181 | 68 440 88 546 21 281 137 143 902 284 689 977 924 312 288 81 Hop . | . . . . . . . . . . . . . . . . Pick Up 65 | 2 9 1 7 . 1 . 8 11 3 3 7 4 8 1 . Fast Attach 65 | 6 4 . 4 . . 1 2 24 . 1 6 5 3 9 . Attach 30 | . 3 . 1 . . . 1 3 5 . 2 3 8 . 4 Detach 8 | . 1 . . . . . 1 3 . . . . 3 . . Swap 56 | . 3 . . 1 . . 3 7 5 . 1 21 11 4 . Drop 77 | . 4 . 3 . 1 1 9 26 7 4 9 5 5 3 . Fire 258 | 3 36 . 30 2 . . . 50 13 . 2 44 28 32 18 Melee 96 | . . . . . . . 2 35 . 7 4 25 6 12 5 Ram 2 | . . . . . . . . 2 . . . . . . . Kick . | . . . . . . . . . . . . . . . . Crush . | . . . . . . . . . . . . . . . . Escape Stasis 42 | . . . . . . . . . 42 . . . . . . Rewire 141 | . . . . . . . . . . 72 . 69 . . . Trap . | . . . . . . . . . . . . . . . . Miscellaneous . | . . . . . . . . . . . . . . . . Route ------- -11/Scrapyard -10/Materials (discovered 2 exits: *Mat / [*Min]) -10/Mines -9/Materials (discovered 2 exits: *Mat / *Min) -9/Mines -9/Exiles (discovered 2 exits: *Min x2) -8/Mines -8/Materials -8/Storage (discovered 2 exits: [*Fac] / Gar) -8/Garrison (discovered 2 exits: *Rec x2) -8/Recycling -6/Factory (discovered 4 exits: *Fac / *Ext x2 / Gar) -6/Extension (discovered 3 exits: *Fac x2 / *Cet) -6/Cetus (discovered 3 exits: *Fac x2 / *Arc) -6/Archives (discovered 3 exits: *Fac / *Hub x2) -6/Hub_04(d) History --------- Turn | Location | Event 24 | -11/Scrapyard | Discovered new exit (range 15) 84 | -11/Scrapyard | Entered Materials 304 | -10/Materials | Build established: Mutant 358 | -10/Materials | Discovered new exit (range 7) 539 | -10/Materials | Discovered new exit (range 10) 604 | -10/Materials | Repaired Lgt. Cannon? 647 | -10/Materials | Repaired Com. Wheel 703 | -10/Materials | Entered Mines 723 | -10/Mines | A weapon hastily lodged in a ceiling crevice suddenly fell to the ground 740 | -10/Mines | Learned location of Storage (-8) 754 | -10/Mines | Assisted by bots powering up and referring to "LRC-V3" 785 | -10/Mines | Discovered new exit (range 11) 802 | -10/Mines | Entered Materials 802 | -9/Materials | Accompanied by 3 allies 802 | -9/Materials | Evolved 2 slots: Propulsion x1, Utility x1 980 | -9/Materials | Discovered new exit (range 16) 1260 | -9/Materials | Discovered new exit (range 11) 1276 | -9/Materials | Identified exit to Materials 1470 | -9/Materials | Identified exit to Mines 1478 | -9/Materials | Entered Mines 1484 | -9/Mines | Met a Derelict bent on vengeance 1503 | -9/Mines | Deemed a non-threat by the Exiles lab entrance 1503 | -9/Mines | Discovered new exit (range 7) 1507 | -9/Mines | Identified exit to Exiles 1508 | -9/Mines | Entered Exiles 1521 | -9/Exiles | Discovered new exit (range 15) 1533 | -9/Exiles | Met 8R-AWN 1556 | -9/Exiles | Identified exit to Mines 1591 | -9/Exiles | Met EX-HEX 1623 | -9/Exiles | Met EX-BIN 1636 | -9/Exiles | Aligned with FarCom system 1637 | -9/Exiles | Given EX-Vault access code 1663 | -9/Exiles | Opened EX-Vault 1668 | -9/Exiles | Found Longsword +1 1690 | -9/Exiles | Warned to stay clear of 0b10 Research branches 1724 | -9/Exiles | Met EX-DEC 1783 | -9/Exiles | Discovered exit to Mines (range 10) 1791 | -9/Exiles | Left Exiles lab with Longsword +1 1791 | -9/Exiles | Entered Mines 1922 | -8/Mines | Discovered exit to Materials (range 9) 1930 | -8/Mines | Entered Materials 1930 | -8/Materials | Evolved 2 slots: Propulsion x1, Utility x1 2027 | -8/Materials | Discovered new exit (range 2) 2028 | -8/Materials | Identified exit to Storage 2118 | -8/Materials | Entered Storage 2589 | -8/Storage | Discovered new exit (range 15) 2960 | -8/Storage | Garrison activated, responded to threat 3261 | -8/Storage | Identified exit to Garrison 3471 | -8/Storage | Lost 4 parts (1p2n1u) 3547 | -8/Storage | Repaired Adv. EMP Blaster 3586 | -8/Storage | Repaired Assault Cannon 3741 | -8/Storage | Build established: Scavenger-Mutant 3782 | -8/Storage | Entered Garrison 3787 | -8/Garrison | Installed Relay Interface Framework 3845 | -8/Garrison | Triggered checkpoint 3845 | -8/Garrison | Triggered checkpoint 3939 | -8/Garrison | Discovered new exit (range 8) 3945 | -8/Garrison | Identified exit to Recycling 4024 | -8/Garrison | Discovered exit to Recycling (range 8) 4039 | -8/Garrison | Triggered checkpoint 4106 | -8/Garrison | Garrison Relay disabled 4126 | -8/Garrison | Entered Recycling 4161 | -8/Recycling | Spotter reported a threat 4164 | -8/Recycling | Spotter reported a threat 4166 | -8/Recycling | Spotter reported a threat 4167 | -8/Recycling | Spotter reported a threat 4167 | -8/Recycling | Spotter reported a threat 4199 | -8/Recycling | Spotter reported a threat 4210 | -8/Recycling | Spotter reported a threat 4217 | -8/Recycling | Spotter reported a threat 4220 | -8/Recycling | Spotter reported a threat 4251 | -8/Recycling | Discovered new exit (range 16) 4252 | -8/Recycling | Spotter reported a threat 4261 | -8/Recycling | Spotter reported a threat 4262 | -8/Recycling | Spotter reported a threat 4263 | -8/Recycling | Spotter reported a threat 4264 | -8/Recycling | Identified exit to Factory 4272 | -8/Recycling | Spotter reported a threat 4276 | -8/Recycling | Spotter reported a threat 4305 | -8/Recycling | Spotter reported a threat 4316 | -8/Recycling | Spotter reported a threat 4325 | -8/Recycling | Spotter reported a threat 4326 | -8/Recycling | Spotter reported a threat 4332 | -8/Recycling | Build established: Mutant 4346 | -8/Recycling | Spotter reported a threat 4372 | -8/Recycling | Spotter reported a threat 4378 | -8/Recycling | Spotter reported a threat 4379 | -8/Recycling | Spotter reported a threat 4510 | -8/Recycling | Entered Factory 4510 | -6/Factory | Accompanied by 5 allies 4510 | -6/Factory | Evolved 4 slots: Utility x4 4670 | -6/Factory | Discovered new exit (range 6) 4671 | -6/Factory | Identified exit to Extension 4751 | -6/Factory | Repaired Cmb. Airjet 4792 | -6/Factory | Repaired Imp. Propulsion Shielding 4860 | -6/Factory | Search patrols dispatched 5043 | -6/Factory | Discovered new exit (range 16) 5045 | -6/Factory | Identified exit to Garrison 5069 | -6/Factory | Identified exit to Factory 5073 | -6/Factory | Discovered exit to Extension (range 6) 5111 | -6/Factory | Entered Extension 5159 | -6/Extension | Spotted B-75 Beast 5195 | -6/Extension | Build established: Scout 5469 | -6/Extension | Rescued A7 5493 | -6/Extension | Rescued a captive Derelict 5504 | -6/Extension | Identified exit to Cetus 5609 | -6/Extension | Rescued a captive Derelict 5652 | -6/Extension | Spotted B-75 Beast 5678 | -6/Extension | Allies destroyed B-75 Beast 5699 | -6/Extension | Destroyed B-75 Beast 5718 | -6/Extension | Discovered exit to Factory (range 3) 5725 | -6/Extension | Lost 3 parts (2u1w) 5761 | -6/Extension | Disrupted transfer network 5808 | -6/Extension | Destroyed 8 combat bots 5816 | -6/Extension | Destroyed A7 5822 | -6/Extension | Extracted ID and sensor layout for unrecognized location from A7's data core 5826 | -6/Extension | Discovered exit to Factory (range 16) 5853 | -6/Extension | Rescued a captive Derelict 5931 | -6/Extension | Entered Cetus 5939 | -6/Cetus | Spotted Cetus Guard 5939 | -6/Cetus | Spotted Cetus Guard 5940 | -6/Cetus | Spotted Cetus Guard 5941 | -6/Cetus | Lost 3 parts (1n1u1w) 5948 | -6/Cetus | Discovered exit to Factory (range 16) 5966 | -6/Cetus | Spotted Cetus Guard 5974 | -6/Cetus | Destroyed Cetus Guard 5978 | -6/Cetus | Destroyed Cetus Guard 5980 | -6/Cetus | Destroyed Cetus Guard 5981 | -6/Cetus | Destroyed Cetus Guard 6011 | -6/Cetus | Lost 4 parts (3n1u) 6044 | -6/Cetus | System corruption reached 10% 6305 | -6/Cetus | Discovered new exit (range 16) 6351 | -6/Cetus | Spotted Cetus Guard 6351 | -6/Cetus | Spotted Cetus Guard 6372 | -6/Cetus | Spotted Cetus Guard 6373 | -6/Cetus | Spotted Cetus Guard 6384 | -6/Cetus | Destroyed Cetus Guard 6384 | -6/Cetus | Destroyed Cetus Guard 6386 | -6/Cetus | Destroyed Cetus Guard 6387 | -6/Cetus | Destroyed Cetus Guard 6399 | -6/Cetus | Discovered exit to Factory (range 15) 6407 | -6/Cetus | Lost 3 parts (2u1w) 6407 | -6/Cetus | Met Revision 17 6474 | -6/Cetus | Destroyed Revision 17 6510 | -6/Cetus | Identified exit to Archives 6512 | -6/Cetus | Entered Archives 6623 | -6/Archives | Core integrity fell below 50% 6646 | -6/Archives | Build established: Scavenger-Mutant 6664 | -6/Archives | Lost 3 parts (2u1w) 6748 | -6/Archives | Discovered new exit (range 16) 6766 | -6/Archives | Unable to access archive contents 6783 | -6/Archives | Unable to access archive contents 6810 | -6/Archives | Unable to access archive contents 6834 | -6/Archives | Discovered new exit (range 13) 6857 | -6/Archives | Identified exit to Hub_04(d) 7025 | -6/Archives | Discovered exit to Factory (range 14) 7089 | -6/Archives | Unable to access archive contents 7121 | -6/Archives | Entered Hub_04(d) 7287 | -6/Hub_04(d) | Core integrity fell below 20% 7292 | -6/Hub_04(d) | System corruption reached 30% 7294 | -6/Hub_04(d) | Destroyed by H-61 Shepherd with Heavy Assault Cannon Last Messages --------------- 07273_ System corrupted: Heat flow error (+144). 07273_ U-05 Engineer builds a Wall. 07274_ System corrupted: Adv. KE Penetrator jammed. 07277_ Adv. KE Penetrator destroyed. 07279_ U-05 Engineer builds a Wall. 07280_ Y-54 Guardian IFF system glitched. 07281_ G-50 Soldier Carbon-fiber Leg severed. 07283_ U-05 Engineer builds a Wall. 07283_ Acquired 34 matter. 07283_ Knocked back. 07284_ Acquired 20 matter. 07288_ Gravmag System destroyed. 07288_ Imp. Terrain Scan Processor destroyed. 07288_ Critical hit (Blast). 07289_ G-50 Soldier destroyed. 07290_ Longsword +1 destroyed. 07291_ Integrated Corrupted Adv. KE Penetrator (+10). 07292_ Acquired 7 matter. 07292_ System corrupted: Adv. KE Penetrator jammed. 07294_ Penetrated by Slug. Map ----- +----------------------------------------------------+ | | | | | | | | | | | | | | | | | | | | | | | | | | | | | | | | | | | ??????????????????????################???????????? | | ??????????????????????# * ??????????? | | ??????????????????????# ??????????? | | ??????????????????????# ??????????? | | ??????????????????????# = ?????????? | | ???????????############[u ! ?????????? | | ???????????# %*#%#Hg! % ????????? | | ???????????# "" %[*/=+ !!Y ????????? | | #??????????# =!###%!@%[k ????????? | | #####??????# """ % #?##########+#####???????????? | | # #??????# #????????????????????????????? | | # ##?????# #????????????g??g????????????? | | # T#?????# "T" #?????????????g??????????????? | | # ##?????# """ #????????????????????????????? | | # #??????# #????????????????????????????? | | + #??????#####g####????????????????????????????? | | # ########## #####+###?????????????????????? | | # #???????????????????? | | # +???????????????????? | | # #???????????????????? | | #########+#### #####+#####???????????????????? | | #??# #######?????????????????????????????? | | #??# #???????????????????????????????????? | | ???# #???????????????????????????????????? | | ???# ! #???????????????????????????????????? | | ???# % #???????????????????????????????????? | | ???+ #?????????????+??+??????????????????? | | ???# #???????????????????????????????????? | | ???# #???????????????????????????????????? | | ???###########???????????????????????????????????? | | ?????????????????????????????????????????????????? | | ?????????????????????????????????????????????????? | | ?????????????????????????????????????????????????? | +----------------------------------------------------+ Best States ------------- Heat Dissipation 56 Energy Generation 23 Energy Capacity 315 Matter Stores 300 Matter Capacity 300 Sight Range 22 Terrain Scan Range 16 Terrain Scan Density 110 Armor Coverage 900 Resistance: TH 10 Propulsion Shielding 66 Evasion (%) 57 Recoil Reduction 4 Relay Coupler Types 3 Relay Coupler Value 55 Authchip Count 1 Item Schematics ----------------- Lgt. EM Pulse Cannon | -9/Materials | Scanalyzed Imp. Propulsion Shielding | -8/Recycling | Hacked Robot Schematics ------------------ O-16 Technician | -8/Storage | Hacked Fabricated ------------ Nothing Alien Tech Used ----------------- None Achievements -------------- Explorer Left-hand Path Revising The Future Challenges ------------ None Game ------ Seed BladePulsePurifier Manual? 0 Play Time 01:55:45 Cumulative 65.4 hours Start 2022.09.08 @ 19:58:21 End 2022.09.09 @ 17:02:04 Sessions 5 Manual Loads 0 Difficulty Rogue Special Mode None Game No. 133 Rogue 133 Adventurer 0 Explorer 0 Win Type - Total 0 Types 0/0/0/0/0/0/0/0/0 Lore% 41 Gallery% 44 Achievement% 38 Wizard Run 0 Options --------- ASCII 0 Keyboard 0 Movement Numpad Keybinds 0 Fullscreen 2 Font 24/Smallcaps Map View 76x50 Tactical HUD 1 Map Filters NONE Filters NONE Steam 1 RUN: 9268f0b0-bf1a-48b3-beae-3ce5e8838b81